[Event "Late-Titled-Tuesday-Blitz-March-26-2024"]
[Site "Chess.com"]
[Date "2024.03.26"]
[Round "3"]
[White "Shiner22"]
[Black "Janh4"]
[Result "1-0"]
[WhiteElo "2406"]
[BlackElo "2163"]
[TimeControl "180+1"]
[EndTime "14:29:06 PDT"]
[Termination "Shiner22 won on time"]

1. e4 {[%clk 0:03:00.9]} 1... c6 {[%clk 0:02:59.7]} 2. d4 {[%clk 0:03:00.3]}
2... d5 {[%clk 0:02:59.6]} 3. exd5 {[%clk 0:03:00.9]} 3... cxd5 {[%clk
0:02:59.5]} 4. c4 {[%clk 0:03:01]} 4... Nf6 {[%clk 0:02:59.5]} 5. Nc3 {[%clk
0:03:00.9]} 5... Nc6 {[%clk 0:02:59.5]} 6. Nf3 {[%clk 0:02:59.4]} 6... a6 {[%clk
0:02:59.4]} 7. cxd5 {[%clk 0:02:58.6]} 7... Nxd5 {[%clk 0:02:58.2]} 8. Bd3
{[%clk 0:02:58.8]} 8... Bg4 {[%clk 0:02:52.5]} 9. h3 {[%clk 0:02:55.7]} 9... Bh5
{[%clk 0:02:52.2]} 10. Be4 {[%clk 0:02:47.7]} 10... e6 {[%clk 0:02:49.2]} 11.
O-O {[%clk 0:02:44.1]} 11... Be7 {[%clk 0:02:47.3]} 12. Re1 {[%clk 0:02:37.8]}
12... Bg6 {[%clk 0:02:42]} 13. Bxd5 {[%clk 0:02:30.2]} 13... exd5 {[%clk
0:02:40.1]} 14. Qb3 {[%clk 0:02:30.8]} 14... O-O {[%clk 0:02:16.1]} 15. Nxd5
{[%clk 0:02:30.1]} 15... Bf6 {[%clk 0:01:42.4]} 16. Nxf6+ {[%clk 0:02:24.8]}
16... Qxf6 {[%clk 0:01:41.4]} 17. d5 {[%clk 0:02:11.1]} 17... Nd4 {[%clk
0:00:49.6]} 18. Nxd4 {[%clk 0:02:09.1]} 18... Qxd4 {[%clk 0:00:49.1]} 19. Be3
{[%clk 0:02:09.1]} 19... Qf6 {[%clk 0:00:46.5]} 20. Qxb7 {[%clk 0:02:05.1]}
20... Rab8 {[%clk 0:00:30.8]} 21. Qc6 {[%clk 0:02:00.6]} 21... Rxb2 {[%clk
0:00:24.2]} 22. Qxf6 {[%clk 0:01:58.5]} 22... gxf6 {[%clk 0:00:23.4]} 23. d6
{[%clk 0:01:50.9]} 23... Rd8 {[%clk 0:00:17.7]} 24. Rad1 {[%clk 0:01:45.8]}
24... Kg7 {[%clk 0:00:13.7]} 25. a4 {[%clk 0:01:36.2]} 25... Rb4 {[%clk
0:00:11.4]} 26. a5 {[%clk 0:01:34.8]} 26... Rd7 {[%clk 0:00:10.6]} 27. Bb6
{[%clk 0:01:32]} 27... Bc2 {[%clk 0:00:07.4]} 28. Rd2 {[%clk 0:01:30.1]} 28...
Ba4 {[%clk 0:00:07.1]} 29. Bc7 {[%clk 0:01:22.1]} 29... Bb5 {[%clk 0:00:04.6]}
30. Re7 {[%clk 0:01:18.7]} 30... Kf8 {[%clk 0:00:03.2]} 31. Rxd7 {[%clk
0:01:08.2]} 31... Bxd7 {[%clk 0:00:04.1]} 32. Kh2 {[%clk 0:01:00.6]} 32... Rf4
{[%clk 0:00:03]} 33. Kg3 {[%clk 0:00:59]} 33... Re4 {[%clk 0:00:02.4]} 34. Rb2
{[%clk 0:00:57.6]} 34... Bb5 {[%clk 0:00:01.8]} 35. Rxb5 {[%clk 0:00:54.3]} 1-0

[Event "Late-Titled-Tuesday-Blitz-March-26-2024"]
[Site "Chess.com"]
[Date "2024.03.26"]
[Round "3"]
[White "gxbg2000"]
[Black "ArchibaldCerveza29"]
[Result "0-1"]
[WhiteElo "2018"]
[BlackElo "2368"]
[TimeControl "180+1"]
[EndTime "14:29:06 PDT"]
[Termination "ArchibaldCerveza29 won by resignation"]

1. e4 {[%clk 0:02:48.3]} 1... e5 {[%clk 0:02:57.5]} 2. Nf3 {[%clk 0:02:47.7]}
2... Nf6 {[%clk 0:02:56.6]} 3. Nc3 {[%clk 0:02:44.3]} 3... Nc6 {[%clk
0:02:55.8]} 4. d3 {[%clk 0:02:44.3]} 4... d5 {[%clk 0:02:53.5]} 5. exd5 {[%clk
0:02:43.7]} 5... Nxd5 {[%clk 0:02:52.5]} 6. Nxd5 {[%clk 0:02:43.5]} 6... Qxd5
{[%clk 0:02:51.8]} 7. Be2 {[%clk 0:02:44.4]} 7... h6 {[%clk 0:02:48.7]} 8. O-O
{[%clk 0:02:44.1]} 8... Be6 {[%clk 0:02:48.8]} 9. Be3 {[%clk 0:02:41.7]} 9...
Be7 {[%clk 0:02:47.2]} 10. Re1 {[%clk 0:02:41.2]} 10... O-O {[%clk 0:02:46.6]}
11. b3 {[%clk 0:02:41.2]} 11... a5 {[%clk 0:02:44.6]} 12. a4 {[%clk 0:02:40.5]}
12... f5 {[%clk 0:02:37.8]} 13. Bd2 {[%clk 0:02:35.4]} 13... Bf6 {[%clk
0:02:35.5]} 14. Rb1 {[%clk 0:02:30.3]} 14... e4 {[%clk 0:02:27.5]} 15. dxe4
{[%clk 0:02:28.6]} 15... fxe4 {[%clk 0:02:28.4]} 16. Bc4 {[%clk 0:02:19.8]}
16... Qf5 {[%clk 0:02:16.5]} 17. Bxe6+ {[%clk 0:02:14.5]} 17... Qxe6 {[%clk
0:02:17.4]} 18. Qe2 {[%clk 0:01:41.9]} 18... Rae8 {[%clk 0:02:11.9]} 19. h3
{[%clk 0:01:39.5]} 19... Qf7 {[%clk 0:02:09.3]} 20. Nh2 {[%clk 0:01:38.3]} 20...
Nd4 {[%clk 0:01:54.9]} 21. Qd1 {[%clk 0:01:25.7]} 21... Bh4 {[%clk 0:01:22.4]}
22. Be3 {[%clk 0:01:21.4]} 22... Bxf2+ {[%clk 0:01:20.1]} 23. Kh1 {[%clk
0:01:19.3]} 23... Bxe1 {[%clk 0:01:16.2]} 24. Qxd4 {[%clk 0:01:17]} 24... Bg3
{[%clk 0:01:09.5]} 25. Ng4 {[%clk 0:01:14.5]} 25... h5 {[%clk 0:00:53.7]} 26.
Nh2 {[%clk 0:01:03.7]} 26... Qe6 {[%clk 0:00:48.1]} 27. Nf1 {[%clk 0:00:57.1]}
27... Bd6 {[%clk 0:00:41.2]} 28. Nd2 {[%clk 0:00:53.6]} 28... Qe5 {[%clk
0:00:29.1]} 29. Qc4+ {[%clk 0:00:45.3]} 29... Kh8 {[%clk 0:00:28.3]} 30. Bg1
{[%clk 0:00:41.9]} 30... e3 {[%clk 0:00:26.3]} 31. Nf3 {[%clk 0:00:40.8]} 31...
Rxf3 {[%clk 0:00:21.7]} 32. gxf3 {[%clk 0:00:39.8]} 32... Qg3 {[%clk 0:00:22.3]}
33. Qf7 {[%clk 0:00:33.3]} 33... Qxh3+ {[%clk 0:00:20.9]} 0-1

[Event "Late-Titled-Tuesday-Blitz-March-26-2024"]
[Site "Chess.com"]
[Date "2024.03.26"]
[Round "3"]
[White "BabageldiAnnaberdiyev"]
[Black "eljanov"]
[Result "0-1"]
[WhiteElo "2639"]
[BlackElo "2904"]
[TimeControl "180+1"]
[EndTime "14:29:10 PDT"]
[Termination "eljanov won by resignation"]

1. e4 {[%clk 0:03:00.9]} 1... c6 {[%clk 0:02:59.4]} 2. d4 {[%clk 0:03:00.5]}
2... d5 {[%clk 0:03:00.3]} 3. Nd2 {[%clk 0:03:00.9]} 3... dxe4 {[%clk
0:03:00.3]} 4. Nxe4 {[%clk 0:03:01.8]} 4... Nf6 {[%clk 0:03:01]} 5. Nxf6+ {[%clk
0:03:02]} 5... exf6 {[%clk 0:03:00.3]} 6. Bc4 {[%clk 0:03:02.6]} 6... Bd6 {[%clk
0:02:59.6]} 7. Qe2+ {[%clk 0:03:03.1]} 7... Be7 {[%clk 0:02:59.8]} 8. Nf3 {[%clk
0:03:02.3]} 8... O-O {[%clk 0:02:59.9]} 9. O-O {[%clk 0:03:02.7]} 9... Bd6
{[%clk 0:02:55.3]} 10. Re1 {[%clk 0:03:02.6]} 10... Na6 {[%clk 0:02:54.5]} 11.
c3 {[%clk 0:03:01.2]} 11... Nc7 {[%clk 0:02:54.5]} 12. h3 {[%clk 0:02:59.5]}
12... Re8 {[%clk 0:02:51.9]} 13. Qd1 {[%clk 0:02:58.8]} 13... Be6 {[%clk
0:02:43.2]} 14. Bd3 {[%clk 0:02:53.9]} 14... Qd7 {[%clk 0:02:40.7]} 15. Bf1
{[%clk 0:02:51.7]} 15... a5 {[%clk 0:02:37.1]} 16. a4 {[%clk 0:02:45]} 16... Nd5
{[%clk 0:02:36.8]} 17. Bd2 {[%clk 0:02:44.7]} 17... Qc7 {[%clk 0:02:17.1]} 18.
Qc2 {[%clk 0:02:42.7]} 18... g6 {[%clk 0:02:15.8]} 19. Bd3 {[%clk 0:02:37.9]}
19... Bf4 {[%clk 0:02:13]} 20. c4 {[%clk 0:02:08.2]} 20... Bxd2 {[%clk
0:02:04.7]} 21. cxd5 {[%clk 0:02:08]} 21... Bxe1 {[%clk 0:02:05]} 22. dxe6
{[%clk 0:02:08.1]} 22... Bxf2+ {[%clk 0:02:05.3]} 23. Qxf2 {[%clk 0:02:02.7]}
23... Rxe6 {[%clk 0:02:05.6]} 24. Bc4 {[%clk 0:02:01.8]} 24... Re7 {[%clk
0:02:05.5]} 25. Re1 {[%clk 0:02:00.2]} 25... Rae8 {[%clk 0:02:02.4]} 26. Rf1
{[%clk 0:01:46.2]} 26... Qf4 {[%clk 0:02:01.5]} 27. b3 {[%clk 0:01:45.4]} 27...
Kg7 {[%clk 0:02:00.9]} 28. Nh2 {[%clk 0:01:41.7]} 28... Qxf2+ {[%clk 0:02:00]}
29. Kxf2 {[%clk 0:01:42.3]} 29... Re3 {[%clk 0:01:52.3]} 30. Rd1 {[%clk
0:01:41.3]} 30... Rc3 {[%clk 0:01:52.1]} 31. Rd2 {[%clk 0:01:38.8]} 31... h5
{[%clk 0:01:35.9]} 32. Nf3 {[%clk 0:01:38.5]} 32... g5 {[%clk 0:01:35]} 33. d5
{[%clk 0:01:38.4]} 33... cxd5 {[%clk 0:01:33.4]} 34. Rxd5 {[%clk 0:01:39.3]}
34... Rc2+ {[%clk 0:01:32.1]} 35. Rd2 {[%clk 0:01:38.2]} 35... Rxd2+ {[%clk
0:01:31]} 36. Nxd2 {[%clk 0:01:39.1]} 36... f5 {[%clk 0:01:29.6]} 37. Nf3 {[%clk
0:01:32.7]} 37... Kf6 {[%clk 0:01:28.5]} 38. Nd4 {[%clk 0:01:33]} 38... f4
{[%clk 0:01:25.3]} 39. Nb5 {[%clk 0:01:29.6]} 39... b6 {[%clk 0:01:23.6]} 40.
Nd6 {[%clk 0:01:28]} 40... Re7 {[%clk 0:01:23.5]} 41. Kf3 {[%clk 0:01:27.7]}
41... Re3+ {[%clk 0:01:19.8]} 42. Kf2 {[%clk 0:01:27.9]} 42... g4 {[%clk
0:01:20.2]} 43. hxg4 {[%clk 0:01:26.2]} 43... hxg4 {[%clk 0:01:21.1]} 44. g3
{[%clk 0:01:18.4]} 44... Rf3+ {[%clk 0:01:13.8]} 45. Kg2 {[%clk 0:00:55.4]}
45... Rxg3+ {[%clk 0:01:13.4]} 46. Kf2 {[%clk 0:00:56.1]} 46... Rf3+ {[%clk
0:01:08.8]} 47. Kg2 {[%clk 0:00:55.7]} 47... Re3 {[%clk 0:00:58]} 48. Nxf7
{[%clk 0:00:51.2]} 48... Rc3 {[%clk 0:00:58.1]} 49. Kf1 {[%clk 0:00:51.2]} 49...
Rxc4 {[%clk 0:00:57.4]} 0-1

[Event "Late-Titled-Tuesday-Blitz-March-26-2024"]
[Site "Chess.com"]
[Date "2024.03.26"]
[Round "3"]
[White "Jospem"]
[Black "Korchmar_Vasiliy"]
[Result "1-0"]
[WhiteElo "3081"]
[BlackElo "2698"]
[TimeControl "180+1"]
[EndTime "14:29:11 PDT"]
[Termination "Jospem won on time"]

1. e4 {[%clk 0:03:00.9]} 1... c5 {[%clk 0:02:59.7]} 2. Nf3 {[%clk 0:03:00.4]}
2... d6 {[%clk 0:03:00.2]} 3. c3 {[%clk 0:03:01]} 3... Nf6 {[%clk 0:02:59.8]} 4.
h3 {[%clk 0:03:01.6]} 4... g6 {[%clk 0:02:59.1]} 5. Bd3 {[%clk 0:03:01.9]} 5...
Bg7 {[%clk 0:02:59.4]} 6. Bc2 {[%clk 0:03:02.6]} 6... O-O {[%clk 0:02:59.7]} 7.
d4 {[%clk 0:03:03.2]} 7... cxd4 {[%clk 0:02:44.3]} 8. cxd4 {[%clk 0:03:04.1]}
8... Nc6 {[%clk 0:02:45]} 9. O-O {[%clk 0:03:01.1]} 9... Nb4 {[%clk 0:02:36]}
10. Bb3 {[%clk 0:03:01]} 10... d5 {[%clk 0:02:34.7]} 11. e5 {[%clk 0:03:00.2]}
11... Ne4 {[%clk 0:02:34.8]} 12. Nc3 {[%clk 0:03:00.9]} 12... Be6 {[%clk
0:02:32.5]} 13. a3 {[%clk 0:02:50.8]} 13... Nc6 {[%clk 0:02:32.6]} 14. Re1
{[%clk 0:02:50.8]} 14... Nxc3 {[%clk 0:02:30.8]} 15. bxc3 {[%clk 0:02:51.7]}
15... Na5 {[%clk 0:02:26.1]} 16. Bc2 {[%clk 0:02:51.5]} 16... Nc4 {[%clk
0:02:24.3]} 17. Ng5 {[%clk 0:02:46.1]} 17... Qa5 {[%clk 0:02:15.3]} 18. Qf3
{[%clk 0:02:33]} 18... Rac8 {[%clk 0:02:11.1]} 19. Qg3 {[%clk 0:02:23.3]} 19...
Bd7 {[%clk 0:02:01.1]} 20. h4 {[%clk 0:01:45.4]} 20... Kh8 {[%clk 0:01:10.9]}
21. h5 {[%clk 0:01:43.9]} 21... Bf5 {[%clk 0:00:57.7]} 22. Bxf5 {[%clk
0:01:27.5]} 22... gxf5 {[%clk 0:00:58.6]} 23. e6 {[%clk 0:01:26.6]} 23... fxe6
{[%clk 0:00:51.3]} 24. Nxe6 {[%clk 0:01:25.3]} 24... Rg8 {[%clk 0:00:41.5]} 25.
Bg5 {[%clk 0:01:10.1]} 25... Nd6 {[%clk 0:00:39.5]} 26. h6 {[%clk 0:01:05.6]}
26... Bxh6 {[%clk 0:00:14.6]} 27. Qe5+ {[%clk 0:01:03.9]} 27... Bg7 {[%clk
0:00:14.1]} 28. Nxg7 {[%clk 0:01:04.2]} 28... Rxg7 {[%clk 0:00:14.3]} 29. Bh6
{[%clk 0:01:03.8]} 29... Rg8 {[%clk 0:00:13.5]} 30. Re3 {[%clk 0:00:58]} 30...
f4 {[%clk 0:00:05.8]} 31. Bxg7+ {[%clk 0:00:57]} 31... Rxg7 {[%clk 0:00:06.2]}
32. Qxf4 {[%clk 0:00:56.5]} 32... Ne4 {[%clk 0:00:03]} 33. Qe5 {[%clk
0:00:53.2]} 33... Qa6 {[%clk 0:00:01.1]} 34. Rf3 {[%clk 0:00:52]} 1-0

[Event "Late-Titled-Tuesday-Blitz-March-26-2024"]
[Site "Chess.com"]
[Date "2024.03.26"]
[Round "3"]
[White "cakeuvdort"]
[Black "xakevicius91"]
[Result "0-1"]
[WhiteElo "2142"]
[BlackElo "2541"]
[TimeControl "180+1"]
[EndTime "14:29:12 PDT"]
[Termination "xakevicius91 won by resignation"]

1. Nf3 {[%clk 0:03:00.9]} 1... Nf6 {[%clk 0:02:52.5]} 2. e3 {[%clk 0:03:00.4]}
2... e6 {[%clk 0:02:51.9]} 3. b3 {[%clk 0:03:00.6]} 3... b6 {[%clk 0:02:51.5]}
4. Bb2 {[%clk 0:03:01]} 4... Bb7 {[%clk 0:02:52.2]} 5. d4 {[%clk 0:03:01.4]}
5... Be7 {[%clk 0:02:52.4]} 6. Bd3 {[%clk 0:02:55.5]} 6... O-O {[%clk
0:02:49.3]} 7. Nbd2 {[%clk 0:02:55.4]} 7... c5 {[%clk 0:02:49]} 8. O-O {[%clk
0:02:54.4]} 8... d6 {[%clk 0:02:48.8]} 9. c4 {[%clk 0:02:54.6]} 9... Nbd7 {[%clk
0:02:49.2]} 10. Qe2 {[%clk 0:02:44.7]} 10... Qc7 {[%clk 0:02:48.8]} 11. Rad1
{[%clk 0:02:43.7]} 11... a6 {[%clk 0:02:48.8]} 12. Bb1 {[%clk 0:02:42.9]} 12...
Rfe8 {[%clk 0:02:49.1]} 13. Rfe1 {[%clk 0:02:38]} 13... Bf8 {[%clk 0:02:49.3]}
14. e4 {[%clk 0:02:07.4]} 14... cxd4 {[%clk 0:02:47.5]} 15. Bxd4 {[%clk
0:02:07.4]} 15... Rac8 {[%clk 0:02:43.8]} 16. e5 {[%clk 0:02:05]} 16... dxe5
{[%clk 0:02:43.1]} 17. Nxe5 {[%clk 0:02:02.6]} 17... Rcd8 {[%clk 0:02:35.1]} 18.
Ndf3 {[%clk 0:01:47.5]} 18... Bb4 {[%clk 0:02:31.3]} 19. Rf1 {[%clk 0:00:58]}
19... Be7 {[%clk 0:02:28.6]} 20. Nxf7 {[%clk 0:00:53.2]} 20... Bxf3 {[%clk
0:02:16.3]} 21. Qxe6 {[%clk 0:00:52.1]} 21... Kf8 {[%clk 0:01:02.8]} 22. Nxd8
{[%clk 0:00:15.4]} 22... Bxd8 {[%clk 0:00:58.8]} 23. gxf3 {[%clk 0:00:16.3]}
23... Rxe6 {[%clk 0:00:58.4]} 24. Bf5 {[%clk 0:00:13.6]} 24... Rd6 {[%clk
0:00:52.9]} 25. Bb2 {[%clk 0:00:08.5]} 25... Be7 {[%clk 0:00:48.8]} 26. Rxd6
{[%clk 0:00:03.3]} 26... Bxd6 {[%clk 0:00:48.4]} 27. Rd1 {[%clk 0:00:02.6]}
27... a5 {[%clk 0:00:44.7]} 28. Bd4 {[%clk 0:00:02.3]} 28... Nc5 {[%clk
0:00:44]} 29. Be3 {[%clk 0:00:02.5]} 29... Bxh2+ {[%clk 0:00:43.8]} 30. Kg2
{[%clk 0:00:02.8]} 30... Bd6 {[%clk 0:00:42.2]} 31. a3 {[%clk 0:00:02.9]} 31...
Nxb3 {[%clk 0:00:39.8]} 32. Rb1 {[%clk 0:00:02.6]} 32... Nc5 {[%clk 0:00:39.7]}
0-1

[Event "Late-Titled-Tuesday-Blitz-March-26-2024"]
[Site "Chess.com"]
[Date "2024.03.26"]
[Round "3"]
[White "DishonorOnYourCow"]
[Black "Polish_fighter3000"]
[Result "0-1"]
[WhiteElo "2535"]
[BlackElo "3113"]
[TimeControl "180+1"]
[EndTime "14:29:14 PDT"]
[Termination "Polish_fighter3000 won by checkmate"]

1. d4 {[%clk 0:03:00.9]} 1... Nf6 {[%clk 0:02:56.7]} 2. c4 {[%clk 0:03:01]} 2...
c5 {[%clk 0:02:57.4]} 3. d5 {[%clk 0:03:01.1]} 3... b5 {[%clk 0:02:57.8]} 4.
cxb5 {[%clk 0:03:01.4]} 4... a6 {[%clk 0:02:58]} 5. bxa6 {[%clk 0:03:01.8]} 5...
g6 {[%clk 0:02:57.9]} 6. Nc3 {[%clk 0:03:01.9]} 6... Bg7 {[%clk 0:02:56]} 7. a7
{[%clk 0:02:56.4]} 7... Rxa7 {[%clk 0:02:52.1]} 8. e4 {[%clk 0:02:56.2]} 8... d6
{[%clk 0:02:51.2]} 9. Nf3 {[%clk 0:02:55.6]} 9... O-O {[%clk 0:02:50.4]} 10. Be2
{[%clk 0:02:55.2]} 10... Ba6 {[%clk 0:02:19.5]} 11. O-O {[%clk 0:02:51.7]} 11...
Nbd7 {[%clk 0:02:18]} 12. a4 {[%clk 0:02:41.6]} 12... Qb6 {[%clk 0:02:11.4]} 13.
Bxa6 {[%clk 0:02:36.8]} 13... Qxa6 {[%clk 0:02:10.5]} 14. Ra3 {[%clk 0:01:54.4]}
14... Rb8 {[%clk 0:01:57.6]} 15. Nb5 {[%clk 0:01:44.3]} 15... Rab7 {[%clk
0:01:57.1]} 16. Qc2 {[%clk 0:01:42.3]} 16... Ne8 {[%clk 0:01:50.1]} 17. b3
{[%clk 0:01:33.8]} 17... Nc7 {[%clk 0:01:25.5]} 18. Nxc7 {[%clk 0:01:31.3]}
18... Rxc7 {[%clk 0:01:26.4]} 19. Bd2 {[%clk 0:01:20.9]} 19... Rcb7 {[%clk
0:01:15.6]} 20. Bc3 {[%clk 0:00:54.9]} 20... Bxc3 {[%clk 0:00:53.6]} 21. Qxc3
{[%clk 0:00:55.8]} 21... Rb4 {[%clk 0:00:53.9]} 22. Nd2 {[%clk 0:00:51.6]} 22...
Qe2 {[%clk 0:00:49.9]} 23. a5 {[%clk 0:00:44]} 23... Rd4 {[%clk 0:00:44.9]} 24.
Nf3 {[%clk 0:00:36.7]} 24... Rd3 {[%clk 0:00:24.1]} 25. Qc4 {[%clk 0:00:29]}
25... Rb4 {[%clk 0:00:23.5]} 26. Qa6 {[%clk 0:00:15.8]} 26... Kg7 {[%clk
0:00:22.6]} 27. Qc8 {[%clk 0:00:14.5]} 27... Rd1 {[%clk 0:00:17.2]} 28. Ra1
{[%clk 0:00:11.9]} 28... Qxf1# {[%clk 0:00:17]} 0-1

[Event "Late-Titled-Tuesday-Blitz-March-26-2024"]
[Site "Chess.com"]
[Date "2024.03.26"]
[Round "3"]
[White "elcala"]
[Black "banane_verte"]
[Result "0-1"]
[WhiteElo "1770"]
[BlackElo "2538"]
[TimeControl "180+1"]
[EndTime "14:29:16 PDT"]
[Termination "banane_verte won by resignation"]

1. d4 {[%clk 0:03:00.9]} 1... Nf6 {[%clk 0:02:55.2]} 2. c4 {[%clk 0:03:01.8]}
2... e6 {[%clk 0:02:55.4]} 3. Nc3 {[%clk 0:03:02.3]} 3... Bb4 {[%clk 0:02:53.8]}
4. a3 {[%clk 0:03:00.4]} 4... Bxc3+ {[%clk 0:02:53.3]} 5. bxc3 {[%clk
0:03:01.3]} 5... b6 {[%clk 0:02:52]} 6. Nf3 {[%clk 0:03:01.7]} 6... Nc6 {[%clk
0:02:51.3]} 7. e3 {[%clk 0:03:00.2]} 7... Na5 {[%clk 0:02:49.7]} 8. Bd3 {[%clk
0:02:54.1]} 8... Ba6 {[%clk 0:02:50]} 9. Qe2 {[%clk 0:02:51]} 9... d6 {[%clk
0:02:49.6]} 10. Rb1 {[%clk 0:02:41.2]} 10... Qd7 {[%clk 0:02:48.4]} 11. O-O
{[%clk 0:02:39.3]} 11... Qa4 {[%clk 0:02:37.9]} 12. Rb4 {[%clk 0:02:30]} 12...
Qc6 {[%clk 0:02:33.5]} 13. e4 {[%clk 0:02:18.5]} 13... e5 {[%clk 0:02:16.5]} 14.
dxe5 {[%clk 0:02:12.1]} 14... dxe5 {[%clk 0:02:17.4]} 15. Nxe5 {[%clk
0:02:09.2]} 15... Qe6 {[%clk 0:02:17.4]} 16. c5 {[%clk 0:01:51.2]} 16... Bxd3
{[%clk 0:01:45.6]} 17. Nxd3 {[%clk 0:01:41.7]} 17... O-O {[%clk 0:01:27.4]} 18.
f3 {[%clk 0:01:38]} 18... Rfd8 {[%clk 0:01:21.6]} 19. Nf4 {[%clk 0:01:27.7]}
19... Qc6 {[%clk 0:01:19.1]} 20. cxb6 {[%clk 0:01:21.4]} 20... axb6 {[%clk
0:01:20]} 21. Bb2 {[%clk 0:01:19]} 21... b5 {[%clk 0:01:11.7]} 22. Rd4 {[%clk
0:01:14.8]} 22... Nc4 {[%clk 0:01:08.5]} 23. Rfd1 {[%clk 0:01:02.6]} 23... Rxd4
{[%clk 0:01:08.6]} 24. cxd4 {[%clk 0:00:52.4]} 24... Nxa3 {[%clk 0:01:07.1]} 25.
Rc1 {[%clk 0:00:46.4]} 25... Nc4 {[%clk 0:01:03.4]} 26. Bc3 {[%clk 0:00:36.5]}
26... h6 {[%clk 0:00:54.4]} 27. Nd3 {[%clk 0:00:28.5]} 27... Nh5 {[%clk
0:00:52.1]} 28. Nb4 {[%clk 0:00:25.7]} 28... Qg6 {[%clk 0:00:47.2]} 29. Bd2
{[%clk 0:00:18.9]} 29... c6 {[%clk 0:00:42.5]} 30. d5 {[%clk 0:00:16.6]} 30...
cxd5 {[%clk 0:00:38.4]} 31. Nxd5 {[%clk 0:00:17.5]} 31... Kh7 {[%clk 0:00:38.7]}
32. Be3 {[%clk 0:00:15.4]} 32... Nf6 {[%clk 0:00:35.5]} 33. Nxf6+ {[%clk
0:00:14.7]} 33... Qxf6 {[%clk 0:00:36.4]} 34. Bd2 {[%clk 0:00:13.9]} 34... Qd4+
{[%clk 0:00:35.8]} 35. Be3 {[%clk 0:00:13.5]} 35... Qxe3+ {[%clk 0:00:35.7]} 36.
Qxe3 {[%clk 0:00:14.4]} 36... Nxe3 {[%clk 0:00:36.6]} 0-1

[Event "Late-Titled-Tuesday-Blitz-March-26-2024"]
[Site "Chess.com"]
[Date "2024.03.26"]
[Round "3"]
[White "GiorgianBarbosa"]
[Black "temus_galaktionov"]
[Result "1-0"]
[WhiteElo "2525"]
[BlackElo "2855"]
[TimeControl "180+1"]
[EndTime "14:29:17 PDT"]
[Termination "GiorgianBarbosa won by resignation"]

1. e4 {[%clk 0:02:59.4]} 1... c6 {[%clk 0:02:59.6]} 2. d3 {[%clk 0:02:57.6]}
2... d6 {[%clk 0:03:00.5]} 3. g3 {[%clk 0:02:56.3]} 3... g6 {[%clk 0:03:01.4]}
4. Bg2 {[%clk 0:02:57.2]} 4... Bg7 {[%clk 0:03:02]} 5. f4 {[%clk 0:02:58]} 5...
Nd7 {[%clk 0:03:02.6]} 6. Nf3 {[%clk 0:02:58.9]} 6... e5 {[%clk 0:03:03.3]} 7.
O-O {[%clk 0:02:59.8]} 7... Ngf6 {[%clk 0:03:02.4]} 8. f5 {[%clk 0:02:57.9]}
8... d5 {[%clk 0:02:57.7]} 9. Nc3 {[%clk 0:02:53.6]} 9... gxf5 {[%clk
0:02:46.7]} 10. exd5 {[%clk 0:02:44.5]} 10... cxd5 {[%clk 0:02:25.8]} 11. Nh4
{[%clk 0:02:41.2]} 11... f4 {[%clk 0:02:24.7]} 12. Nf5 {[%clk 0:02:33.6]} 12...
Qb6+ {[%clk 0:02:17.9]} 13. Kh1 {[%clk 0:02:31.8]} 13... Rg8 {[%clk 0:02:11.3]}
14. gxf4 {[%clk 0:02:28.7]} 14... e4 {[%clk 0:02:07.8]} 15. dxe4 {[%clk
0:02:24.9]} 15... dxe4 {[%clk 0:02:08.7]} 16. Be3 {[%clk 0:02:19.2]} 16... Qxb2
{[%clk 0:02:00.9]} 17. Bd4 {[%clk 0:02:07.2]} 17... Qb4 {[%clk 0:01:59.1]} 18.
Nxe4 {[%clk 0:01:55.2]} 18... Nxe4 {[%clk 0:01:55.1]} 19. Nxg7+ {[%clk
0:01:53.3]} 19... Rxg7 {[%clk 0:01:46.7]} 20. Bxg7 {[%clk 0:01:51.9]} 20... Ndc5
{[%clk 0:01:46.9]} 21. Qe1 {[%clk 0:01:15]} 21... Qxe1 {[%clk 0:01:41.6]} 22.
Raxe1 {[%clk 0:01:14.4]} 22... f5 {[%clk 0:01:42.5]} 23. Bd4 {[%clk 0:01:10.3]}
23... b6 {[%clk 0:01:42.4]} 24. Bxc5 {[%clk 0:01:08.5]} 24... bxc5 {[%clk
0:01:43.3]} 25. Bxe4 {[%clk 0:01:08.2]} 25... fxe4 {[%clk 0:01:44.2]} 26. Rxe4+
{[%clk 0:01:08.5]} 26... Kf7 {[%clk 0:01:44.8]} 27. Re5 {[%clk 0:01:02]} 27...
Bb7+ {[%clk 0:01:42.3]} 28. Kg1 {[%clk 0:01:01.4]} 28... h6 {[%clk 0:01:33]} 29.
Kf2 {[%clk 0:00:56.8]} 29... Rd8 {[%clk 0:01:31.3]} 30. Rfe1 {[%clk 0:00:54.7]}
30... Ba6 {[%clk 0:01:27.6]} 31. Re7+ {[%clk 0:00:48.1]} 31... Kf8 {[%clk
0:01:27.8]} 32. Rxa7 {[%clk 0:00:46.8]} 32... Bc4 {[%clk 0:01:27.9]} 33. Ree7
{[%clk 0:00:44.1]} 33... Rd2+ {[%clk 0:01:26.8]} 34. Kg3 {[%clk 0:00:43.9]}
34... Rxc2 {[%clk 0:01:27]} 35. Rec7 {[%clk 0:00:42.1]} 35... Rc3+ {[%clk
0:01:22.9]} 36. Kh4 {[%clk 0:00:39.2]} 36... Re3 {[%clk 0:01:22.2]} 37. Rc8+
{[%clk 0:00:38.4]} 37... Re8 {[%clk 0:01:21.9]} 38. Rxe8+ {[%clk 0:00:38.6]}
38... Kxe8 {[%clk 0:01:22.8]} 39. Rc7 {[%clk 0:00:38.9]} 39... Bxa2 {[%clk
0:01:22.5]} 40. Rxc5 {[%clk 0:00:39.2]} 40... Bf7 {[%clk 0:01:21.8]} 41. Rc6
{[%clk 0:00:36.4]} 41... Kf8 {[%clk 0:01:19.4]} 42. Rxh6 {[%clk 0:00:35.7]}
42... Kg7 {[%clk 0:01:20.3]} 43. Rb6 {[%clk 0:00:36.3]} 43... Bd5 {[%clk
0:01:19.8]} 44. Kg5 {[%clk 0:00:37.2]} 44... Be4 {[%clk 0:01:19.8]} 45. h4
{[%clk 0:00:37.1]} 45... Bd5 {[%clk 0:01:20]} 46. h5 {[%clk 0:00:37.2]} 46...
Kh7 {[%clk 0:01:19.4]} 47. h6 {[%clk 0:00:38.1]} 47... Be4 {[%clk 0:01:19.4]}
48. Re6 {[%clk 0:00:37.4]} 48... Bd3 {[%clk 0:01:17.6]} 49. Re7+ {[%clk
0:00:37.6]} 49... Kg8 {[%clk 0:01:17.4]} 50. f5 {[%clk 0:00:36.6]} 50... Bc2
{[%clk 0:01:09.8]} 51. Kg6 {[%clk 0:00:32.4]} 51... Kf8 {[%clk 0:01:09.4]} 52.
Rf7+ {[%clk 0:00:30.8]} 52... Ke8 {[%clk 0:01:10]} 53. h7 {[%clk 0:00:30.3]}
53... Bxf5+ {[%clk 0:01:08.6]} 54. Rxf5 {[%clk 0:00:31.2]} 1-0